Workbook

Sheet 7-11 лет
A1: Школа | B1: МБОУ " Мысовская СОШ " | E1: Отд./корп | I1: День | J1: 7.
A3: Прием пищи | B3: Раздел | C3: № рец. | D3: Блюдо | E3: Выход, г | F3: Цена | G3: Калорийность | H3: Белки | I3: Жиры | J3: Углеводы
A4: Завтрак | B4: закуска | C4: № 106/2013 | D4: Овощи натуральные (огурец свежий) | E4: 60 | G4: 8.46 | H4: 0.48 | I4: 0.06 | J4: 1.50
A5: 7-11лет | B5: 2 блюдо | C5: №347/2018 | D5: Котлеты "Школьные" | E5: 90 | G5: 257.30 | H5: 17.57 | I5: 15.70 | J5: 11.43
B6: Гарнир | C6: 414/2013 | D6: Рис отварной | E6: 160 | G6: 215.34 | H6: 4.59 | I6: 7.02 | J6: 33.46
B7: гор. Напиток | C7: №457/2018 | D7: Чай с сахаром | E7: 200 | G7: 39.92 | J7: 9.98
B8: хлеб бел. | C8: №108/2013 | D8: Хлеб пшеничный | E8: 50 | G8: =62.38/30*20 -> 41.59 | H8: =2.28/30*20 -> 1.52 | I8: =0.24/30*20 -> 0.16 | J8: =10.35/30*20 -> 6.90
E9: =SUM(E4:E8) -> 560 | F9: 96.26 | G9: =SUM(G4:G8) -> 562.61 | H9: =SUM(H4:H8) -> 24.16 | I9: =SUM(I4:I8) -> 22.94 | J9: =SUM(J4:J8) -> 63.27
A10: Завтрак 2 | B10: мучные изделия | C10: №573/2013 | D10: Гребешок с повидлом | E10: 60 | G10: 257 | H10: 6 | I10: 4 | J10: 49
A11: ОВЗ | B11: напиток | C11: №459/2018 | D11: Чай с лимоном | E11: 200 | G11: 40.96 | H11: 0.06 | I11: 0.01 | J11: 10.16
E12: =SUM(E10:E11) -> 260 | F12: 33.15 | G12: =SUM(G10:G11) -> 298 | H12: =SUM(H10:H11) -> 6 | I12: 4 | J12: 59
A13: Обед | B13: закуска | C13: № 157/2018 | D13: Овощи консервированные отварные (кукуруза) | E13: 60 | G13: 58.30 | H13: 1.20 | I13: 2.70 | J13: 7.40
A14: 7-11лет | B14: 1 блюдо | C14: №144/2013 | D14: Суп картофельный с бобовыми | E14: 200 | G14: 131.00 | H14: 5.10 | I14: 3.80 | J14: 19.10
B15: 2 блюдо | C15: №371/2018 | D15: Кнели из филе кур | E15: 100 | G15: 121.45 | H15: 18.02 | I15: 3.71 | J15: 4.01
B16: гарнир | C16: №256/2018 | D16: Макароные изделия отварные | E16: 150 | G16: 252.30 | H16: 7.06 | I16: 7.43 | J16: 39.30
B17: напиток | C17: №494/2018 | D17: Компот из кураги | E17: 200 | G17: 85.40 | H17: 1.00 | I17: 0.10 | J17: 20.20
B18: хлеб бел. | C18: №108/2013 | D18: Хлеб пшеничный | E18: 40 | G18: =62.38/30*20 -> 41.59 | H18: =2.28/30*20 -> 1.52 | I18: =0.24/30*20 -> 0.16 | J18: =10.35/30*20 -> 6.90
B19: хлеб черн. | C19: №109/2013 | D19: Хлеб ржаной | E19: 40 | G19: =62.34/30*20 -> 41.56 | H19: =1.47/30*20 -> 0.98 | I19: =0.3/30*20 -> 0.20 | J19: =13.44/30*20 -> 8.96
E21: =SUM(E13:E20) -> 790 | F21: 96.26 | G21: =SUM(G13:G20) -> 732 | H21: =SUM(H13:H20) -> 35 | I21: 18 | J21: 106

Sheet 12-18 лет
A1: Школа | B1: МБОУ " Мысовская СОШ " | E1: Отд./корп | I1: День | J1: 7.
A3: Прием пищи | B3: Раздел | C3: № рец. | D3: Блюдо | E3: Выход, г | F3: Цена | G3: Калорийность | H3: Белки | I3: Жиры | J3: Углеводы
A4: Завтрак | B4: закуска | C4: № 106/2013 | D4: Овощи натуральные (огурец свежий) | E4: 60 | G4: 8.46 | H4: 0.48 | I4: 0.06 | J4: 1.50
A5: 12-18 лет | B5: 2 блюдо | C5: №347/2018 | D5: Котлеты "Школьные" | E5: 90 | G5: 257.30 | H5: 17.57 | I5: 15.70 | J5: 11.43
B6: Гарнир | C6: 414/2013 | D6: Рис отварной | E6: 160 | G6: 215.34 | H6: 4.59 | I6: 7.02 | J6: 33.46
B7: гор. Напиток | C7: №457/2018 | D7: Чай с сахаром | E7: 200 | G7: 39.92 | J7: 9.98
B8: хлеб бел. | C8: №108/2013 | D8: Хлеб пшеничный | E8: 50 | G8: =62.38/30*20 -> 41.59 | H8: =2.28/30*20 -> 1.52 | I8: =0.24/30*20 -> 0.16 | J8: =10.35/30*20 -> 6.90
E9: =SUM(E4:E8) -> 560 | F9: 107.93 | G9: =SUM(G4:G8) -> 562.61 | H9: =SUM(H4:H8) -> 24.16 | I9: 22.94 | J9: =SUM(J4:J8) -> 63.27
A10: Обед | B10: закуска | C10: № 157/2018 | D10: Овощи консервированные отварные (кукуруза) | E10: 60 | G10: 58.30 | H10: 1.20 | I10: 2.70 | J10: 7.40
A11: 12-18 лет | B11: 1 блюдо | C11: №144/2013 | D11: Суп картофельный с бобовыми | E11: 250 | G11: =131/200*250 -> 163.75 | H11: =5.1/200*250 -> 6.38 | I11: =3.8/200*250 -> 4.75 | J11: =19.1/200*250 -> 23.88
B12: 2 блюдо | C12: №371/2018 | D12: Кнели из филе кур | E12: 100 | G12: 121.45 | H12: 18.02 | I12: 3.71 | J12: 4.01
B13: гарнир | C13: №256/2018 | D13: Макароные изделия отварные | E13: 150 | G13: 252.30 | H13: 7.06 | I13: 7.43 | J13: 39.30
B14: напиток | C14: №494/2018 | D14: Компот из кураги | E14: 200 | G14: 85.40 | H14: 1.00 | I14: 0.10 | J14: 20.20
B15: хлеб бел. | C15: №108/2013 | D15: Хлеб пшеничный | E15: 40 | G15: =62.38/30*20 -> 41.59 | H15: =2.28/30*20 -> 1.52 | I15: =0.24/30*20 -> 0.16 | J15: =10.35/30*20 -> 6.90
B16: хлеб черн. | C16: №109/2013 | D16: Хлеб ржаной | E16: 40 | G16: =62.34/30*20 -> 41.56 | H16: =1.47/30*20 -> 0.98 | I16: =0.3/30*20 -> 0.20 | J16: =13.44/30*20 -> 8.96
E18: =SUM(E10:E17) -> 840 | F18: 107.93 | G18: =SUM(G10:G17) -> 764 | H18: =SUM(H10:H17) -> 36 | I18: 19 | J18: 111
A19: Завтрак 2 | B19: мучные изделия | C19: №573/2013 | D19: Гребешок с повидлом | E19: 60 | G19: 257 | H19: 6 | I19: 4 | J19: 49
A20: ОВЗ | B20: напиток | C20: №459/2018 | D20: Чай с лимоном | E20: 200 | G20: 40.96 | H20: 0.06 | I20: 0.01 | J20: 10.16
E21: =SUM(E19:E20) -> 260 | F21: 33.15 | G21: =SUM(G19:G20) -> 298 | H21: =SUM(H19:H20) -> 6 | I21: 4 | J21: 59
